bitfinex/quotes_ETHUSD_20250131
["timestamp","ask_amount","ask_price","bid_price","bid_amount"]
[1738336503447,7.205406,3357.9,3357.2,2.9786]
[1738336503647,2.70154903,3357.8,3356.9,3.7465]
[1738336503885,3.7909,3357.7,3356.9,0.7676]
[1738336504057,2.97877,3357.1,3356.6,0.8095]
[1738336504404,2.97877,3357.1,3356.4,2.97932]
[1738336504405,3.0,3357.1,3356.4,2.97932]
[1738336504613,3.0,3357.3,3356.7,2.97909]
[1738336504779,3.37542229,3357.3,3356.8,2.97897]
[1738336504981,6.39130827,3357.3,3356.6,2.97918]
[1738336505184,6.39130827,3357.3,3356.3,0.8095]
[1738336505185,3.41265827,3357.3,3356.4,2.97935]
[1738336505385,3.78984,3357.1,3356.4,2.97935]
[1738336505579,0.29948572,3357.0,3356.5,2.97923]
[1738336505998,0.29948572,3357.0,3356.7,2.97909]
[1738336506408,0.29948572,3357.0,3356.3,0.8095]
[1738336506409,0.37542229,3357.3,3356.3,0.8095]
[1738336506607,3.75402287,3357.6,3356.8,2.97899]
[1738336506810,3.75402287,3357.6,3356.4,2.97934]
[1738336506811,2.97856,3357.4,3356.6,2.97918]
[1738336506975,2.97887,3357.0,3356.3,0.8095]
[1738336507182,2.97929,3356.6,3356.0,3.73919]
[1738336507376,0.297929,3356.5,3356.0,0.7595]
[1738336507809,0.297929,3356.5,3355.7,2.97994]
[1738336507810,2.97942,3356.4,3355.7,2.97994]
[1738336508016,0.829,3356.4,3355.9,2.97975]
[1738336508217,0.297929,3356.5,3355.9,2.97975]
[1738336508218,3.297929,3356.5,3355.9,2.97975]
[1738336508384,1.0085269,3356.4,3355.9,2.97975]
[1738336508588,2.9797,3356.1,3355.5,2.98011]
[1738336508780,2.97953,3356.3,3355.3,3.74055]
[1738336508781,0.829,3355.9,3355.3,2.98035]
[1738336508992,0.829,3355.9,3355.4,2.98025]
[1738336509238,0.829,3355.9,3355.3,2.98035]
[1738336509382,4.489698,3355.9,3355.4,2.98024]
[1738336509583,4.489698,3355.9,3355.1,2.9805]
[1738336509783,2.98025,3355.5,3354.9,2.98069]
[1738336510028,2.98025,3355.5,3354.7,2.98085]
[1738336510528,2.98025,3355.5,3354.9,2.98066]
[1738336510727,3.576277,3355.5,3354.9,2.98066]
[1738336511093,0.596027,3355.5,3354.9,2.98066]
[1738336511307,4.489708,3355.9,3355.3,2.98033]
[1738336511791,3.0,3355.8,3355.3,2.98033]
[1738336512585,5.97997,3355.8,3355.2,2.98044]
[1738336513116,0.03725388,3355.7,3355.2,29.8045]
[1738336513285,10.23103941,3355.3,3355.2,29.8045]
[1738336513635,11.81164335,3355.3,3355.2,29.8045]
[1738336514198,8.33505394,3355.3,3355.2,29.8045]
[1738336514405,7.77755394,3355.3,3355.2,29.8045]
[1738336514730,11.81164335,3355.3,3355.2,29.8045]
[1738336514896,11.81914335,3355.3,3355.2,29.8045]
[1738336515108,11.81164335,3355.3,3355.2,29.8045]
[1738336515346,11.25414335,3355.3,3355.2,29.8045]
[1738336516188,3.0,3355.3,3355.2,29.8045]
[1738336516389,2.98003,3355.7,3355.2,29.8045]
[1738336516390,2.98015,3355.6,3355.2,29.8045]
[1738336516620,0.8005,3355.7,3355.2,29.8045]
[1738336517136,4.36545741,3355.9,3355.2,29.8045]
[1738336517342,2.98003,3355.7,3355.2,29.8045]
[1738336517818,3.79671974,3355.8,3355.2,29.8045]
[1738336518025,3.0,3355.6,3355.2,29.8045]
[1738336518341,2.98035,3355.3,3355.2,29.8045]
[1738336518709,5.98035,3355.3,3355.2,29.8045]
[1738336518908,8.16056554,3355.3,3355.2,29.8045]
[1738336519117,12.45685495,3355.3,3355.2,29.8045]
[1738336519942,10.84163941,3355.3,3355.2,20.29759259]
[1738336520088,10.27663941,3355.3,3355.2,20.29759259]
[1738336520294,6.80005,3355.3,3355.2,20.29759259]
[1738336521518,10.82663941,3355.3,3355.2,20.29759259]
[1738336521714,10.84163941,3355.3,3355.2,20.29759259]
[1738336522810,2.98171,3353.8,3353.2,0.7857]
[1738336523027,2.98167,3353.9,3353.2,0.7857]
[1738336523209,7.25931941,3354.1,3353.4,2.98197]
[1738336523451,3.78273,3354.1,3353.5,2.98193]
[1738336523669,2.98166,3353.9,3353.3,0.376797]
[1738336523834,3.01904661,3353.8,3353.2,0.7857]
[1738336524031,3.01904661,3353.8,3353.2,3.76791]
[1738336524289,2.9817,3353.8,3353.2,0.7857]
[1738336524649,0.03727741,3353.7,3353.2,0.7857]
[1738336524852,3.01906741,3353.7,3353.2,0.7857]
[1738336525171,2.98161,3353.9,3353.2,2.98221]
[1738336525680,0.31128498,3353.8,3353.2,2.98221]
[1738336526038,3.29299498,3353.8,3353.2,2.98221]
[1738336526382,0.31128498,3353.8,3352.9,0.7941]
[1738336526894,0.31128498,3353.8,3353.5,2.98195]
[1738336527182,0.31128498,3353.8,3353.7,2.98178]
[1738336527489,5.98116,3354.4,3353.7,2.98178]
[1738336527640,0.03727058,3354.3,3353.7,2.98178]
[1738336528167,3.0,3354.2,3353.6,3.80795]
[1738336528401,3.0,3354.4,3353.6,0.8261]
[1738336528685,3.0,3354.4,3353.8,2.98162]
[1738336528864,0.03727121,3354.3,3353.6,0.8261]
[1738336529187,3.0,3354.2,3353.7,2.98176]
[1738336529338,3.0,3354.2,3353.9,2.98153]
[1738336529693,2.981,3354.6,3353.9,2.98152]
[1738336529886,2.981,3354.6,3354.0,2.98145]
[1738336530037,3.03726876,3354.5,3353.7,0.39399901]
[1738336530236,2.98119,3354.4,3353.6,3.80793]
[1738336530536,0.55,3353.9,3353.0,2.98233]
[1738336530736,0.03727803,3353.8,3352.9,0.7515]
[1738336530986,2.9817,3353.8,3353.2,2.9822]
[1738336531198,3.01906815,3353.7,3353.1,2.98225]
[1738336531337,3.0,3353.9,3353.2,3.66033812]
[1738336531540,5.98162,3353.9,3353.3,2.98213]
[1738336531739,0.8275,3354.0,3353.0,2.9824]
[1738336531964,0.8201,3354.4,3353.6,2.98179]
[1738336532290,0.8201,3354.4,3353.8,2.98162]
[1738336532463,3.8201,3354.4,3353.9,2.98159]
[1738336532635,3.8201,3354.4,3353.9,3.05726769]
[1738336532839,0.7883,3354.9,3354.1,2.98135]
[1738336533150,2.9811,3354.5,3354.2,0.07562868]
[1738336533451,3.0,3354.6,3354.1,2.98139]
[1738336533652,0.03726842,3354.5,3354.3,0.07586743]
[1738336533866,0.03726842,3354.5,3354.0,2.98151]
[1738336533867,3.0,3354.6,3354.2,0.07568569]
[1738336534067,2.98083,3354.8,3354.4,0.07565303]
[1738336534273,3.0,3354.6,3354.1,2.98138]
[1738336534592,3.0,3354.6,3354.5,0.07563669]
[1738336534593,5.98098,3354.6,3354.5,0.07563669]
[1738336534892,0.7973,3354.1,3353.3,3.78555]
[1738336535095,2.98152,3354.0,3353.3,0.8035]
[1738336535247,2.98171,3353.8,3353.4,0.07564758]
[1738336535448,2.98171,3353.8,3353.3,2.98213]
[1738336535771,2.98171,3353.8,3353.5,0.07563124]
[1738336535977,2.98179,3353.7,3353.4,0.07564758]
[1738336536175,2.98171,3353.8,3353.6,0.07561489]
[1738336536372,2.98171,3353.8,3353.5,0.07563124]
[1738336536558,0.0075,3354.5,3352.8,0.60125666]
[1738336536559,2.009949,3354.7,3353.8,0.7626]
[1738336536884,3.7973,3354.7,3354.0,2.98146]
[1738336537083,3.0,3354.5,3353.8,3.74423]
[1738336537390,3.0,3354.5,3354.1,0.07568702]
[1738336537546,3.0,3354.5,3354.0,2.98146]
[1738336537547,3.0,3354.5,3354.0,5.96289]
[1738336537746,0.8164,3354.7,3354.2,0.07567068]
[1738336537747,6.79734,3354.7,3354.2,0.07567068]
[1738336537982,6.79734,3354.7,3354.1,3.05708702]
[1738336538188,2.98115,3354.4,3354.3,0.07565435]
[1738336538393,3.0,3354.3,3354.2,0.07567068]
[1738336538547,3.0,3354.3,3353.9,2.98153]
[1738336538901,3.53804,3355.1,3353.8,3.74422]
[1738336538902,1.19331,3355.3,3354.6,2.98094]
[1738336539191,3.79171,3355.5,3354.8,2.9808]
[1738336539395,3.79171,3355.5,3354.9,2.98066]
[1738336539545,3.79171,3355.5,3354.9,0.07543632]
[1738336539743,3.0,3355.4,3354.9,0.07543632]
[1738336539983,0.8115,3355.5,3354.9,0.07543632]
[1738336540173,2.98032,3355.4,3354.9,0.07543632]
[1738336540571,7.34582,3355.0,3354.9,0.07543632]
[1738336540953,2.98082,3354.8,3354.2,2.98132]
[1738336541345,0.8152,3355.0,3353.9,0.7965]
[1738336541549,3.48067672,3355.4,3354.8,2.98071]
[1738336541550,0.8152,3355.4,3354.8,2.98071]
[1738336541762,2.98048,3355.2,3354.6,2.98091]
[1738336541997,3.01782089,3355.1,3354.9,0.07527504]
[1738336542163,3.01782089,3355.1,3354.3,2.98116]
[1738336542164,2.98063,3355.0,3354.3,2.98116]
[1738336542349,3.0,3355.1,3355.0,0.07525871]
[1738336542550,3.0,3355.1,3354.3,2.98121]
[1738336542752,2.98091,3354.7,3354.1,3.77785]
[1738336542973,3.03726709,3354.6,3354.1,3.77785]
[1738336543171,3.0,3354.6,3354.1,3.77785]
[1738336543662,2.98101,3354.6,3354.0,2.98145]
[1738336544390,3.7674,3354.7,3353.9,2.98157]
[1738336544708,3.7674,3354.7,3354.1,2.98137]
[1738336545060,3.7674,3354.7,3354.1,2.98142]
[1738336545275,6.74831,3354.7,3354.1,2.98142]
[1738336545452,6.74831,3354.7,3354.0,2.9815]
[1738336545646,3.7674,3354.7,3354.1,2.98142]
[1738336545866,0.76,3355.3,3354.4,0.7972]
[1738336546187,0.76,3355.3,3354.7,2.98081]
[1738336546358,6.74036,3355.3,3354.7,2.98081]
[1738336546765,3.48067672,3355.7,3354.4,0.7972]
[1738336546947,1.07124593,3355.8,3354.4,0.7972]
[1738336547147,3.0,3355.7,3355.2,2.98044]
[1738336547348,1.07124593,3355.8,3355.2,2.98044]
[1738336548154,0.31124593,3355.8,3355.3,2.98034]
[1738336548567,0.31124593,3355.8,3355.3,5.96064]
[1738336548887,0.31124593,3355.8,3355.3,2.9803]
[1738336549089,0.31124593,3355.8,3355.4,2.98024]
[1738336549814,0.31124593,3355.8,3355.5,2.98012]
[1738336550291,0.31124593,3355.8,3355.1,0.7515]
[1738336550498,0.31124593,3355.8,3355.7,3.7529]
[1738336550854,0.5575,3356.6,3355.7,0.7729]
[1738336551095,2.97889,3357.0,3354.4,0.69262042]
[1738336551096,4.03067672,3356.2,3354.9,0.8114]
[1738336551294,2.97988,3355.9,3355.8,0.07309801]
[1738336551462,3.0,3355.8,3355.2,2.98038]
[1738336551667,2.97988,3355.9,3355.2,2.98038]
[1738336551864,2.97988,3355.9,3355.3,0.07289466]
[1738336552282,3.0,3356.2,3355.3,0.07289466]
[1738336552595,0.31131436,3356.3,3355.8,2.9799]
[1738336552795,6.29078436,3356.3,3355.7,0.8114]
[1738336553107,6.29078436,3356.3,3355.6,2.98007]
[1738336553108,2.97966,3356.1,3355.8,0.0728243]
[1738336553262,6.29078436,3356.3,3355.8,0.0728243]
[1738336553593,6.29078436,3356.3,3355.6,2.98008]
[1738336553796,2.97959,3356.2,3355.9,0.07280798]
[1738336553968,2.97973,3356.0,3355.4,0.7568]
[1738336554494,3.0,3355.8,3355.2,2.98043]
[1738336554699,3.8034,3355.9,3355.3,2.98028]
[1738336555404,3.0,3355.9,3355.2,2.98043]
[1738336555599,3.0,3355.9,3355.4,2.9802]
[1738336555911,3.0,3355.9,3355.6,2.98008]
[1738336556572,3.0,3355.9,3355.5,2.98016]
[1738336556779,3.0,3356.0,3355.5,2.98016]
[1738336556975,3.0,3356.0,3355.5,2.9801]
[1738336557189,0.7556,3356.2,3355.6,2.98006]
[1738336557517,3.73516,3356.2,3355.1,0.7995]
[1738336557820,0.03725139,3356.1,3355.3,2.98031]
[1738336558026,0.7556,3356.2,3355.3,2.98031]
[1738336558205,2.97972,3356.1,3355.5,2.98015]
[1738336558418,3.0,3355.9,3355.3,2.98031]
[1738336558611,3.0,3355.9,3355.6,0.07246702]
[1738336558612,2.97986,3355.9,3355.6,0.07246702]
[1738336558926,2.97986,3355.9,3355.7,0.0724507]
[1738336559079,2.98003,3355.7,3355.1,3.78003]
[1738336559512,3.0,3355.8,3355.2,2.98042]
[1738336559916,3.0,3355.8,3355.3,2.9803]
[1738336560102,3.0,3355.8,3355.4,2.98023]
[1738336560423,3.0,3355.8,3355.6,2.98008]
[1738336560626,3.0,3355.8,3355.7,2.98]
[1738336560833,3.0,3355.8,3355.6,2.98008]
[1738336560996,3.0,3355.8,3355.1,0.7995]
[1738336561181,3.0,3355.8,3355.3,2.98035]
[1738336561384,3.0,3355.8,3355.4,2.98025]
[1738336561796,3.0,3355.8,3355.5,2.98017]
[1738336562030,3.0,3355.8,3355.4,2.98025]
[1738336562333,3.0,3355.8,3355.5,2.98017]
[1738336562513,3.0,3355.8,3355.4,2.98025]
[1738336563024,3.0,3355.8,3355.3,2.98035]
[1738336563244,3.0,3355.8,3355.2,2.98041]
[1738336563531,3.0,3355.8,3355.2,5.96078]
[1738336563697,3.0,3355.8,3355.3,2.98029]
[1738336563897,3.0,3355.8,3355.4,2.98022]
[1738336564423,3.0,3355.8,3355.2,2.98037]
[1738336564633,3.0,3355.8,3355.4,2.98026]
[1738336564800,3.0,3355.8,3355.2,2.98037]
[1738336565003,3.0,3355.8,3355.2,5.96073]
[1738336565403,3.0,3355.8,3355.3,2.98034]
[1738336565705,3.0372533,3355.8,3355.2,2.98036]
[1738336566233,0.8131,3355.6,3355.0,2.9806]
[1738336566525,0.8131,3355.6,3354.8,2.98078]
[1738336566526,2.98018,3355.5,3354.9,2.98063]
[1738336566729,3.8131,3355.6,3355.0,2.98061]
[1738336566903,2.98032,3355.4,3354.8,2.98074]
[1738336567238,3.0,3355.3,3354.7,3.81194]
[1738336567587,3.0,3355.3,3354.2,2.98131]
[1738336567588,2.98054,3355.1,3354.4,3.75188]
[1738336567989,3.84666004,3355.0,3354.2,2.98133]
[1738336568324,2.98076,3354.9,3354.2,2.98133]
[1738336569092,2.98076,3354.9,3354.3,2.98124]
[1738336569489,3.74239,3355.5,3354.8,2.98077]
[1738336569683,0.31136093,3355.3,3354.6,2.98095]
[1738336569939,2.98047,3355.2,3354.6,2.98098]
[1738336570237,6.29171124,3355.2,3354.6,2.98098]
[1738336570391,2.98054,3355.1,3354.4,2.9811]
[1738336570723,2.98054,3355.1,3354.3,2.98123]
[1738336570724,0.7622,3355.0,3354.3,2.98123]
[1738336570889,0.7622,3355.0,3354.4,2.98114]
[1738336571090,3.7622,3355.0,3354.4,2.98114]
[1738336571518,0.7622,3355.0,3354.4,2.98114]
[1738336571835,0.31124124,3355.2,3354.5,0.7809]
[1738336572023,0.31124124,3355.2,3354.9,2.9807]
[1738336572219,3.78072,3355.7,3355.1,2.98053]
[1738336572588,3.78072,3355.7,3354.9,2.9807]
[1738336572589,0.31121803,3355.6,3354.9,2.9807]
[1738336572793,3.29135803,3355.6,3354.9,2.9807]
[1738336573023,2.98019,3355.5,3354.9,2.9807]
[1738336573394,3.29135803,3355.6,3354.9,2.9807]
[1738336573693,2.98019,3355.5,3355.0,0.07284616]
[1738336574006,3.29135803,3355.6,3355.0,3.05343616]
[1738336574339,3.29135803,3355.6,3355.1,2.98053]
[1738336574629,3.29135803,3355.6,3355.1,3.05335983]
[1738336575193,0.31121803,3355.6,3355.2,2.98043]
[1738336575393,0.31121803,3355.6,3355.3,2.98028]
[1738336575612,0.31121803,3355.6,3355.3,3.05298719]
[1738336576137,0.31121803,3355.6,3355.3,6.03329719]
[1738336576638,0.31121803,3355.6,3355.5,2.98018]
[1738336576991,0.7975,3356.1,3355.5,0.07275326]
[1738336576992,0.0372503,3356.0,3355.5,0.07275326]
[1738336577188,2.97989,3355.9,3355.5,0.07275326]
[1738336577392,2.97989,3355.9,3355.3,2.98027]
[1738336577592,2.97989,3355.9,3355.6,0.07258698]
[1738336577794,2.97989,3355.9,3354.4,3.86061694]
[1738336577795,2.9805,3355.2,3354.5,3.73869]
[1738336578033,2.9805,3355.2,3354.5,6.71971]
[1738336578339,2.9805,3355.2,3354.6,2.98096]
[1738336579309,2.98056,3355.1,3354.5,0.7577]
[1738336579509,2.98056,3355.1,3354.6,2.98097]
[1738336579737,2.98056,3355.1,3354.5,0.7577]
[1738336579738,2.98064,3355.0,3354.4,2.98107]
[1738336580462,0.8266,3355.1,3354.6,2.98095]
[1738336581058,0.8266,3355.1,3354.7,2.98088]
[1738336581377,1.14391494,3355.8,3355.4,2.98026]
[1738336581686,0.8326,3355.8,3355.4,2.98026]
[1738336581845,0.60085145,3356.3,3354.9,6.46245294]
[1738336581846,1.3826,3356.2,3354.9,6.46245294]
[1738336582044,0.8326,3356.2,3355.9,2.97981]
[1738336582364,0.31133022,3356.3,3355.5,0.7639]
[1738336582365,0.31133022,3356.3,3356.1,2.97963]
[1738336582672,0.31133022,3356.3,3356.2,2.97956]
[1738336583538,0.8326,3356.9,3356.4,2.97931]
[1738336583687,3.8326,3356.9,3356.4,2.97931]
[1738336583892,6.81153,3356.9,3356.2,2.97949]
[1738336584098,0.55,3356.7,3355.8,2.97988]
[1738336584248,2.97935,3356.5,3355.8,2.97988]
[1738336584447,5.95873,3356.5,3355.8,2.97988]
[1738336584647,2.97957,3356.2,3355.7,0.7639]
[1738336584893,2.97957,3356.2,3355.4,2.98025]
[1738336584894,3.01696786,3356.1,3355.4,3.74415]
[1738336585047,3.0,3356.1,3355.4,3.74415]
[1738336585402,3.0,3356.1,3355.6,2.98001]
[1738336585694,3.0,3356.1,3355.7,2.97998]
[1738336585900,0.8326,3356.2,3355.8,2.97989]
[1738336586041,3.0,3356.3,3355.8,2.97989]
[1738336586243,3.8094,3356.5,3355.6,2.98009]
[1738336586487,2.97904,3356.8,3356.3,2.97944]
[1738336586850,2.97913,3356.7,3356.1,2.9796]
[1738336587058,2.97904,3356.8,3356.1,2.97963]
[1738336587290,3.0,3356.7,3356.0,2.97965]
[1738336587495,3.0,3356.7,3356.2,2.97954]
[1738336587789,3.0,3356.7,3356.0,2.97965]
[1738336587790,5.97914,3356.7,3356.0,2.97965]
[1738336587994,2.97924,3356.6,3356.0,2.97965]
[1738336588144,2.97926,3356.6,3355.9,2.97977]
[1738336588593,2.97965,3356.1,3355.2,2.98044]
[1738336588895,0.8156,3356.7,3356.1,0.06964716]
[1738336588896,0.55,3356.4,3356.1,0.06964716]
[1738336589064,2.97956,3356.2,3355.7,2.97999]
[1738336589451,3.0,3356.3,3355.7,2.97993]
[1738336589649,3.0,3356.5,3355.7,3.77973]
[1738336589953,2.97957,3356.2,3355.4,0.8066]
[1738336590149,3.0,3356.3,3355.7,2.97994]
[1738336590351,3.55,3356.5,3355.9,2.97978]
[1738336590578,6.52935,3356.5,3355.9,2.97978]
[1738336591570,0.8185,3357.1,3356.1,2.97956]
[1738336591881,2.97892,3357.0,3356.3,2.97941]
[1738336592066,2.97903,3356.8,3356.3,2.97941]
[1738336593057,5.97886,3357.0,3356.4,2.97936]
[1738336593253,5.97886,3357.0,3356.3,5.95881]
[1738336593583,3.0,3356.8,3356.3,2.9794]
[1738336593756,2.97912,3356.7,3356.1,2.97961]
[1738336594406,3.0,3356.8,3356.2,2.97948]
[1738336594706,3.0,3356.8,3356.1,2.97961]
[1738336594707,3.0,3356.8,3356.3,2.97945]
[1738336595363,2.97887,3357.0,3356.4,2.97932]
[1738336595774,3.0,3356.9,3356.4,2.97932]
[1738336595975,2.28189399,3357.4,3356.6,2.97919]
[1738336596163,1.19253,3357.4,3357.2,2.97863]
[1738336596590,0.55,3357.6,3356.8,0.7875]
[1738336596791,1.192339,3357.6,3356.8,2.97896]
[1738336596996,1.192339,3357.6,3357.0,2.97879]
[1738336597166,1.192339,3357.6,3356.6,0.7875]
[1738336597167,3.52837,3357.6,3356.6,0.7875]
[1738336597355,0.8192,3357.7,3356.6,0.7875]
[1738336597559,1.192337,3357.6,3357.1,2.97871]
[1738336597754,1.192337,3357.6,3357.1,5.95739]
[1738336598108,3.0,3357.6,3357.1,2.97868]
[1738336598258,3.0,3357.6,3356.6,0.7875]
[1738336598259,2.011474,3357.7,3357.2,2.97866]
[1738336598772,0.8176,3358.0,3357.5,2.97835]
[1738336599179,3.0,3358.0,3357.5,2.97835]
[1738336599411,0.7979,3358.3,3357.6,2.97823]
[1738336599412,2.97784,3358.2,3357.6,2.97823]
[1738336599709,1.19214,3358.1,3357.6,2.97823]
[1738336599905,2.97784,3358.2,3357.7,0.06853944]
[1738336600059,4.169916,3358.2,3357.7,0.06853944]
[1738336600260,3.0,3358.0,3357.7,0.06853944]
[1738336600491,3.0,3358.0,3357.4,3.78816]
[1738336600707,3.0,3358.0,3357.4,3.78812]
[1738336601006,3.0,3358.0,3357.5,0.06857204]
[1738336601207,3.0,3358.1,3357.5,0.06857204]
[1738336601507,3.0,3358.1,3357.6,2.97826]
[1738336601997,3.0,3358.1,3357.8,2.97813]
[1738336602384,3.0,3358.1,3357.9,0.06850684]
[1738336602958,3.0,3358.1,3357.4,3.78816]
[1738336603174,3.0,3358.1,3358.0,0.06605291]
[1738336603376,3.0,3358.1,3357.6,2.97831]
[1738336603597,3.0,3358.1,3358.0,0.06605291]
[1738336603860,3.0,3358.1,3357.6,2.97831]
[1738336604460,3.0,3358.1,3357.7,0.0661018]
[1738336604985,3.0,3358.1,3357.4,3.78816]
[1738336605186,3.0,3358.1,3357.8,0.0660855]
[1738336605377,1.192076,3358.2,3357.6,2.97824]
[1738336605573,1.192076,3358.2,3357.9,0.0660692]
[1738336605805,1.192076,3358.2,3357.6,2.97824]
[1738336605806,3.0,3358.1,3357.6,2.97824]
[1738336606005,3.0,3358.1,3358.0,0.06605291]
[1738336606178,3.0,3358.1,3357.6,2.97824]
[1738336606379,3.0,3358.1,3358.0,0.06586713]
[1738336606666,3.0,3358.1,3357.6,2.97824]
[1738336606902,1.192076,3358.2,3358.0,0.06586713]
[1738336607105,3.0,3358.1,3357.6,2.97824]
[1738336607288,3.0,3358.3,3358.1,0.06585083]
[1738336607612,5.9777,3358.3,3357.6,2.97824]
[1738336607809,7.169764,3358.3,3358.2,0.06583454]
[1738336608011,2.97792,3358.1,3357.4,3.78816]
[1738336608312,3.0,3358.0,3357.4,3.78816]
[1738336608893,3.0,3358.0,3357.5,2.97839]
[1738336609094,2.97756,3358.5,3357.8,2.9781]
[1738336609296,2.97772,3358.3,3357.6,2.9783]
[1738336609670,2.97772,3358.3,3357.7,0.06591603]
[1738336610323,0.8293,3358.2,3357.7,0.06591603]
[1738336610469,3.8293,3358.2,3357.5,2.97835]
[1738336610674,6.80711,3358.2,3357.5,2.97835]
[1738336610903,6.80711,3358.2,3357.6,0.06576011]
[1738336611427,3.0,3358.0,3357.6,0.06576011]
[1738336611781,0.03722922,3358.1,3357.4,0.8097]
[1738336612019,2.97819,3357.8,3357.7,0.06574381]
[1738336612203,2.97819,3357.8,3357.1,2.97874]
[1738336612409,2.97838,3357.6,3357.0,2.97882]
[1738336612622,2.97838,3357.6,3357.2,0.06582532]
[1738336612834,2.97816,3357.8,3357.1,3.04458163]
[1738336613104,2.97816,3357.8,3357.1,2.97874]
[1738336613383,2.97814,3357.8,3357.2,0.06582532]
[1738336614726,3.31118406,3357.7,3357.2,0.06582532]
[1738336614947,0.8332,3357.6,3356.9,3.7869]
[1738336615110,0.8332,3357.6,3357.3,0.06545697]
[1738336615314,0.8332,3357.6,3356.9,3.7869]
[1738336615538,0.8332,3357.6,3357.4,0.06544066]
[1738336615735,0.8332,3357.6,3357.1,2.97871]
[1738336615938,0.31118406,3357.7,3357.5,0.06542436]
[1738336616142,0.31118406,3357.7,3357.2,2.97865]
[1738336616416,0.31118406,3357.7,3357.6,0.06540806]
[1738336616847,0.31118406,3357.7,3357.1,2.97875]
[1738336617047,0.31118406,3357.7,3357.6,0.06540806]
[1738336617243,0.31118406,3357.7,3357.2,2.97866]
[1738336617467,0.31118406,3357.7,3357.6,0.06540806]
[1738336617629,0.7722,3358.0,3357.6,2.97831]
[1738336617830,0.55,3358.3,3357.7,2.97821]
[1738336618051,0.8201,3358.5,3357.9,2.97802]
[1738336618251,3.0,3358.4,3357.8,0.06537546]
[1738336618421,3.0,3358.4,3358.0,0.06537282]
[1738336618757,3.0,3358.4,3358.1,0.06532657]
[1738336618916,5.97762,3358.4,3357.7,3.76951]
[1738336619256,5.012129,3358.5,3357.8,3.04350172]
[1738336619822,7.989669,3358.5,3357.8,3.04350172]
[1738336620219,2.97761,3358.4,3357.8,3.04350172]
[1738336620564,7.989679,3358.5,3357.8,3.04350172]
[1738336621135,5.012129,3358.5,3357.8,3.04350172]
[1738336621334,5.012129,3358.5,3357.9,2.97799]
[1738336621662,0.15903089,3359.1,3357.9,2.97799]
[1738336621663,7.05471374,3359.2,3358.4,2.9776]
[1738336621862,3.18473,3359.4,3358.3,0.787]
[1738336622066,1.191717,3359.3,3358.5,0.06501432]
[1738336622271,1.191717,3359.3,3358.7,2.97726]
[1738336622449,3.0,3359.3,3358.7,2.97726]
[1738336622763,1.191697,3359.3,3358.9,2.97709]
[1738336622975,0.8288,3359.5,3358.9,0.8197]
[1738336623125,1.191578,3359.6,3359.3,2.9768]
[1738336623649,2.97637,3359.8,3359.3,2.9768]
[1738336623819,2.97637,3359.8,3359.4,0.06450475]
[1738336624144,4.167776,3359.9,3359.4,0.06450475]
[1738336624351,2.97637,3359.8,3359.4,0.06450475]
[1738336624676,2.97646,3359.7,3359.1,2.97696]
[1738336624817,3.01375009,3359.6,3359.5,0.06408825]
[1738336625025,2.97701,3359.1,3358.5,3.77508]
[1738336625345,2.97701,3359.1,3357.7,2.70648374]
[1738336625346,2.97762,3358.4,3357.8,2.97808]
[1738336626069,2.97762,3358.4,3357.6,3.7766]
[1738336626226,2.97778,3358.2,3357.6,3.7766]
[1738336626428,3.75902,3358.4,3357.8,2.97808]
[1738336627321,3.75902,3358.4,3357.9,2.97804]
[1738336627532,2.97762,3358.4,3357.9,2.97804]
[1738336627739,0.8257,3358.7,3357.9,2.97804]
[1738336627933,2.97749,3358.6,3357.9,2.97804]
[1738336628172,2.97749,3358.6,3358.0,2.97794]
[1738336628526,2.97749,3358.6,3358.1,2.97785]
[1738336629366,2.97749,3358.6,3357.9,2.97804]
[1738336629572,2.97753,3358.5,3357.9,2.97804]
[1738336629782,2.97749,3358.6,3357.9,2.97804]
[1738336630484,2.97749,3358.6,3358.0,2.97795]
[1738336630689,2.9771,3359.0,3358.2,0.763]
[1738336630897,3.0,3359.2,3358.2,0.763]
[1738336630898,2.97691,3359.2,3358.6,2.97737]
[1738336631191,5.95319,3359.6,3359.0,2.97699]
[1738336631343,2.97657,3359.6,3359.0,2.97699]
[1738336631543,3.0,3359.5,3359.1,0.06433672]
[1738336631870,0.7957,3359.8,3359.2,2.97682]
[1738336632042,4.167776,3359.9,3359.2,2.97682]
[1738336632370,2.97647,3359.7,3359.3,0.06429293]
[1738336632571,2.97647,3359.7,3358.8,3.73415]
[1738336632743,2.97647,3359.7,3359.4,0.06400728]
[1738336633089,7.144155,3359.9,3359.2,2.97684]
[1738336633297,2.97637,3359.8,3359.5,0.063991]
[1738336633608,5.97647,3359.7,3359.6,0.06397471]
[1738336633764,5.97647,3359.7,3359.2,2.97684]
[1738336633765,3.0,3359.7,3359.2,2.97684]
[1738336633946,3.0,3359.6,3358.8,4.16810323]
[1738336634147,2.97695,3359.2,3358.6,2.9774]
[1738336634592,2.97695,3359.2,3358.7,2.97733]
[1738336634959,2.97695,3359.2,3358.5,0.7569]
[1738336635159,2.97695,3359.2,3358.6,2.97741]
[1738336635384,2.97672,3359.4,3358.6,3.648598]
[1738336635552,3.7723,3359.6,3358.9,2.9771]
[1738336635749,3.0,3359.3,3358.7,2.97725]
[1738336635948,3.0,3359.3,3358.6,3.648568]
[1738336636220,3.0,3359.3,3358.9,2.97715]
[1738336636715,2.9767,3359.5,3358.7,2.97731]
[1738336636900,2.9767,3359.5,3358.5,0.7569]